{"text_format":"1","workbook":"xlsx","n_sheets":1,"sheets":["POULESETAB"],"not_rendered":{"charts":0,"images":0,"macros":1,"external_links":1,"defined_names":155,"comments":0,"pivot_tables":0},"unopened":[],"bounds":{"document_bytes":16777216,"sheet_cells":100000,"rows_first":2000,"rows_last":500,"rows_between":2000,"halvings":0,"cell_chars":16384,"cell_head_chars":4096},"cells_cut":0,"cells_raw":0,"read":"whole","date_system":"1900"}

{"sheet":"POULESETAB","index":0,"n_rows":47,"n_cols":22,"rows_kept":47,"cut":false,"hidden":false,"merged":[]}
[]
[]
[]
[]
[]
[]
[null,"Num","POULE 1","Acad",null,"Num","POULE 2","Acad",null,"Num","POULE 3","Acad",null,null,null,null,null,null,null,null,"Num equipes","Poules"]
[null,null,"SAINT EXUPERY / FRESNES","CRETEIL",null,16,"LEONARD DE VINCI / SAINT AUBIN DU MEDOC","BORDEAUX",null,71,"VALLEE DU LYS / VIHIERS","NANTES",null,null,null,null,null,null,null,null,1,5]
[null,91,"CHARLES PEGUY / MONCOUTANT","POITIERS",null,86,"SAINT JEAN DE PASSY / PARIS","PARIS",null,116,"NOTRE DAME DE LA COMPASSION / PONTOISE","VERSAILLES",null,null,null,null,null,null,null,null,7,2]
[null,31,"ALESIA / VENAREY LES LAUMES","DIJON",null,36,"MIXTE / BAILLIF","GUADELOUPE",null,66,"ERCKMANN CHATRIAN / PHALSBOURG","NANCY-METZ",null,null,null,null,null,null,null,null,13,4]
[null,null,"","",null,null,"","",null,null,"","",null,null,null,null,null,null,null,null,19,7]
[null,null,null,null,null,null,null,null,null,null,null,null,null,null,null,null,null,null,null,null,25,8]
[null,"Num","POULE 4","Acad",null,"Num","POULE 5","Acad",null,"Num","POULE 6","Acad",null,null,null,null,null,null,null,null,31,6]
[null,56,"PIERRE ET MARIE CURIE / LA TALAUDIERE","LYON",null,106,"DE GERSTHEIM / GERSTHEIM","STRASBOURG",null,51,"CASARES / RILLIEUX LA PAPE","LYON",null,null,null,null,null,null,null,null,37,5]
[null,41,"JEAN ALBANY / LA POSSESSION","LA REUNION",null,96,"FRANCOIS BROUSSAIS / DINAN","RENNES",null,101,"JEAN LURCAT / LANESTER","RENNES",null,null,null,null,null,null,null,null,43,2]
[null,76,"PAUL ARENE / PEYMEINADE","NICE",null,111,"J J ROUSSEAU / LABASTIDE ST PIERRE","TOULOUSE",null,11,"JULES JEANNENEY / RIOZ","BESANCON",null,null,null,null,null,null,null,null,49,3]
[null,null,"","",null,null,"","",null,null,"","",null,null,null,null,null,null,null,null,55,4]
[null,null,null,null,null,null,null,null,null,null,null,null,null,null,null,null,null,null,null,null,61,3]
[null,"Num","POULE 7","Acad",null,"Num","POULE 8","Acad",null,null,null,null,null,null,null,null,null,null,null,null,67,3]
[null,1,"COUTAREL ELIE / ISTRES","AIX-MARSEILLE",null,61,"VOIE DOMITIENNE / LE CRES","MONTPELLIER",null,null,null,null,null,null,null,null,null,null,null,null,73,7]
[null,46,"JACQUES MONOD / PERENCHIES","LILLE",null,81,"DE LORBELLIERE / OLIVET","ORLEANS-TOURS",null,null,null,null,null,null,null,null,null,null,null,null,79,8]
[null,21,"LOUIS ARAGON / DOMERAT","CLERMONT-FERRAND",null,6,"DE LA CHESNOYE / SAINT-GOBAIN","AMIENS",null,null,null,null,null,null,null,null,null,null,null,null,85,5]
[null,null,{"$f":"IF(B23=\"\",\"\",VLOOKUP(B23,BASE,5))","v":""},{"$f":"IF(B23=\"\",\"\",VLOOKUP(B23,BASE,6))","v":""},null,null,{"$f":"IF(F23=\"\",\"\",VLOOKUP(F23,BASE,5))","v":""},{"$f":"IF(F23=\"\",\"\",VLOOKUP(F23,BASE,6))","v":""},null,null,null,null,"Liste des équipes Etablissement",null,null,null,null,null,null,null,91,1]
[null,null,null,null,null,null,null,null,null,null,null,1,"COUTAREL ELIE / ISTRES",{"$f":"L24&\" \" &M24","v":"1 COUTAREL ELIE / ISTRES"},{"$f":"L24","v":1},null,null,null,null,null,97,4]
[null,null,null,null,null,null,null,null,null,null,null,6,"DE LA CHESNOYE / SAINT-GOBAIN",{"$f":"L25&\" \" &M25","v":"6 DE LA CHESNOYE / SAINT-GOBAIN"},{"$f":"L25","v":6},null,null,null,null,null,103,7]
[null,null,null,null,null,null,null,null,null,null,null,11,"JULES JEANNENEY / RIOZ","11 JULES JEANNENEY / RIOZ",11,null,null,null,null,null,109,1]
[null,null,null,null,null,null,null,null,null,null,null,16,"LEONARD DE VINCI / SAINT AUBIN DU MEDOC","16 LEONARD DE VINCI / SAINT AUBIN DU MEDOC",16,null,null,null,null,null,115,8]
[null,null,null,null,null,null,null,null,null,null,null,21,"LOUIS ARAGON / DOMERAT","21 LOUIS ARAGON / DOMERAT",21,null,null,null,null,null,121,1]
[null,null,null,null,null,null,null,null,null,null,null,26,"SAINT EXUPERY / FRESNES","26 SAINT EXUPERY / FRESNES",26,null,null,null,null,null,127,2]
[null,null,null,null,null,null,null,null,null,null,null,31,"ALESIA / VENAREY LES LAUMES","31 ALESIA / VENAREY LES LAUMES",31,null,null,null,null,null,133,6]
[null,null,null,null,null,null,null,null,null,null,null,36,"MIXTE / BAILLIF","36 MIXTE / BAILLIF",36,null,null,null,null,null,139,6]
[null,null,null,null,null,null,null,null,null,null,null,41,"JEAN ALBANY / LA POSSESSION","41 JEAN ALBANY / LA POSSESSION",41]
[null,null,null,null,null,null,null,null,null,null,null,46,"JACQUES MONOD / PERENCHIES","46 JACQUES MONOD / PERENCHIES",46]
[null,null,null,null,null,null,null,null,null,null,null,51,"CASARES / RILLIEUX LA PAPE","51 CASARES / RILLIEUX LA PAPE",51]
[null,null,null,null,null,null,null,null,null,null,null,56,"PIERRE ET MARIE CURIE / LA TALAUDIERE","56 PIERRE ET MARIE CURIE / LA TALAUDIERE",56]
[null,null,null,null,null,null,null,null,null,null,null,61,"VOIE DOMITIENNE / LE CRES","61 VOIE DOMITIENNE / LE CRES",61]
[null,null,null,null,null,null,null,null,null,null,null,66,"ERCKMANN CHATRIAN / PHALSBOURG","66 ERCKMANN CHATRIAN / PHALSBOURG",66]
[null,null,null,null,null,null,null,null,null,null,null,71,"VALLEE DU LYS / VIHIERS","71 VALLEE DU LYS / VIHIERS",71]
[null,null,null,null,null,null,null,null,null,null,null,76,"PAUL ARENE / PEYMEINADE","76 PAUL ARENE / PEYMEINADE",76]
[null,null,null,null,null,null,null,null,null,null,null,81,"DE LORBELLIERE / OLIVET","81 DE LORBELLIERE / OLIVET",81]
[null,null,null,null,null,null,null,null,null,null,null,86,"SAINT JEAN DE PASSY / PARIS","86 SAINT JEAN DE PASSY / PARIS",86]
[null,null,null,null,null,null,null,null,null,null,null,91,"CHARLES PEGUY / MONCOUTANT","91 CHARLES PEGUY / MONCOUTANT",91]
[null,null,null,null,null,null,null,null,null,null,null,96,"FRANCOIS BROUSSAIS / DINAN","96 FRANCOIS BROUSSAIS / DINAN",96]
[null,null,null,null,null,null,null,null,null,null,null,101,"JEAN LURCAT / LANESTER","101 JEAN LURCAT / LANESTER",101]
[null,null,null,null,null,null,null,null,null,null,null,106,"DE GERSTHEIM / GERSTHEIM","106 DE GERSTHEIM / GERSTHEIM",106]
[null,null,null,null,null,null,null,null,null,null,null,111,"J J ROUSSEAU / LABASTIDE ST PIERRE","111 J J ROUSSEAU / LABASTIDE ST PIERRE",111]
[null,null,null,null,null,null,null,null,null,null,null,116,"NOTRE DAME DE LA COMPASSION / PONTOISE","116 NOTRE DAME DE LA COMPASSION / PONTOISE",116]